Cogmind - Beta 13 @@@ ROGUE MODE // 2024.04.08 @ 03:34:45 Player: JanPolak Result: Destroyed by H-55 Commando with Gauss Rifle Performance ------------- Evolutions (2) 1000 Regions Visited (5) 1000 Robots Destroyed (82) 410 Value Destroyed (2265) 2265 Prototype IDs (23) 460 Alien Tech Used (0) 0 Bonus (300) 300 TOTAL SCORE: 5435 Bonus ------- Aligned with FarCom 300 Cogmind --------- Core Integrity 0/550 Matter 280/300 Energy 150/150 System Corruption 5% Temperature Cool (0) Movement Walking (130) Location -8/Materials Parts ------- > --- POWER (1) -------- Light Angular Momentum Engine > --- PROPULSION (4) --- Improved Titanium Leg Improved Titanium Leg Improved Titanium Leg Improved Titanium Leg > --- UTILITY (4) ------ Improved Heat Sink Large Storage Unit Improved Signal Interpreter Hacking Suite > --- WEAPON (2) ------- Gatling Laser Rocket Launcher > --- INVENTORY (15) --- Deuterium Engine Light Deuterium Engine Light Nuclear Core Aluminum Leg Aluminum Leg Improved Heat Sink Shock Rifle Faulty Advanced Beam Rifle Advanced Beam Rifle Gatling Laser Gatling Laser Gatling Laser Improved Datajack Longsword +1 Peak State ------------ > --- POWER ------------ Light Angular Momentum Engine > --- PROPULSION ------- Improved Titanium Leg Improved Titanium Leg Improved Titanium Leg Improved Titanium Leg > --- UTILITY ---------- Heat Sink Large Storage Unit Melee Analysis Suite Hacking Suite > --- WEAPON ----------- Gatling Laser Longsword +1 > --- INVENTORY -------- Deuterium Engine Deuterium Engine Light Deuterium Engine Aluminum Leg Aluminum Leg Improved Signal Interpreter Hacking Suite Heavy EM Pulse Gun Heavy EM Pulse Gun Shock Rifle Beam Rifle Gatling Laser Beamcaster Rocket Launcher [Rating: 44] Favorites ----------- Power Light Nuclear Core Engine Light Angular Momentum Engine Power Core Light Nuclear Core Propulsion Aluminum Leg Leg Aluminum Leg Utility Medium Storage Unit Device Improved Heat Sink Storage Medium Storage Unit Processor Melee Analysis Suite Hackware Hacking Suite Weapon Assault Rifle Energy Gun Gatling Laser Ballistic Gun Assault Rifle Launcher Rocket Launcher Slashing Weapon Longsword +1 Build | -11 -10 -10 -10 -9 -8 ------- Run | Yrd Mat Min Exi Min Mat Slots Evolved 4 | . . . . . 4 Power . | . . . . . . Propulsion 2 | . . . . . 2 Utility 2 | . . . . . 2 Weapon . | . . . . . . Parts Attached 76 | 7 10 7 . 3 49 Power 12 | 2 3 2 . . 5 Engine 8 | 2 2 1 . . 3 Core 4 | . 1 1 . . 2 Reactor . | . . . . . . Propulsion 20 | 2 3 3 . . 12 Treads . | . . . . . . Leg 20 | 2 3 3 . . 12 Wheel . | . . . . . . Hover . | . . . . . . Flight . | . . . . . . Utility 14 | 1 1 2 . . 10 Device 4 | . . 1 . . 3 Storage 4 | 1 1 1 . . 1 Processor 4 | . . . . . 4 Hackware 2 | . . . . . 2 Protection . | . . . . . . Artifact . | . . . . . . Weapon 30 | 2 3 . . 3 22 Energy Gun 10 | 1 . . . . 9 Energy Cannon . | . . . . . . Ballistic Gun 10 | 1 3 . . 1 5 Ballistic Cannon . | . . . . . . Launcher 4 | . . . . 1 3 Special Weapon . | . . . . . . Impact Weapon . | . . . . . . Slashing Weapon 6 | . . . . 1 5 Piercing Weapon . | . . . . . . Special Melee Weapon . | . . . . . . Unidentified Prototypes . | . . . . . . Parts Lost 21 | . 2 2 . 1 16 Power 3 | . 1 1 . . 1 Propulsion 7 | . . 1 . . 6 Utility 4 | . . . . . 4 Weapon 7 | . 1 . . 1 5 Highest Loss Streak 13 | . 1 1 . 1 13 To Critical Strikes 1 | . . . . 1 . Average Slot Usage (%) 93 | . 84 92 100 100 90 Engine 5 | . 13 8 . . 6 Core 6 | . . 5 14 14 2 Leg 29 | . 27 27 28 28 33 Device 8 | . . 8 14 14 6 Storage 12 | . 14 14 14 14 9 Processor 2 | . . . . . 8 Hackware 1 | . . . . . 5 Energy Gun 3 | . 3 . . . 9 Ballistic Gun 18 | . 24 28 28 14 3 Launcher 1 | . . . . 7 . Slashing Weapon 2 | . . . . 6 3 Naked Turns . | . . . . . . Heaviest Build 38 | 11 18 20 20 22 38 Greatest Support 80 | 20 20 25 25 25 80 Greatest Overweight (x) 2 | 2 1 1 . . 2 Average Overweight (x) . | . . . . . . Largest Inventory Capacity 15 | 8 10 10 10 10 15 Average Capacity 11 | 7 9 10 10 10 14 Most Carried 15 | 5 9 10 10 10 15 Average Carried 9 | 2 7 9 10 9 10 Final Capacity 15 | 8 10 10 10 10 15 Final Carried 14 | 2 9 10 10 9 14 Class Distribution -------------------- 56% | Scavenger-Mutant 43% | Mutant Dominant Class ---------------- Mutant | -10/Materials Mutant | -10/Mines Scavenger-Mutant | -10/Exiles Scavenger-Mutant | -9/Mines Mutant | -8/Materials Resources | -11 -10 -10 -10 -9 -8 ----------- Run | Yrd Mat Min Exi Min Mat Matter Collected 1664 | 206 331 307 . 184 636 Remotely . | . . . . . . Salvage Created 2532 | . 699 429 . 153 1251 Parts 171 | . 50 35 . 17 69 Haulers Intercepted 5 | . 2 . . . 3 Recyclers Shooed . | . . . . . . Parts Field Recycled . | . . . . . . Retrieved Matter . | . . . . . . Parts Self-Destructed . | . . . . . . Prevented . | . . . . . . Kills | -11 -10 -10 -10 -9 -8 ------- Run | Yrd Mat Min Exi Min Mat Combat Hostiles Destroyed 60 | . 11 12 . 11 26 Melee 8 | . . . . 2 6 Guns 38 | . 8 12 . 3 15 AOE 14 | . 3 . . 6 5 Classes Destroyed 11 | . 5 3 . 1 2 Worker 5 | . 1 1 . 1 2 Builder 5 | . 2 1 . . 2 Tunneler 2 | . . 1 . 1 . Hauler 5 | . 2 . . . 3 Watcher 5 | . 3 . . . 2 Swarmer 18 | . . 6 . 8 4 Grunt 27 | . 11 4 . 2 10 Brawler 1 | . . . . . 1 Duelist 2 | . . . . 1 1 Sentry 11 | . . 2 . . 9 Hunter 1 | . . . . . 1 Best Kill Streak 9 | . 7 3 . 5 9 Combat Bots Only 7 | . 4 3 . 4 7 Max Kills in Single Turn 5 | . 5 1 . 4 2 Gunslinging . | . . . . . . Exploded 3 | . 2 . . 3 1 Melee 1 | . . . . 1 1 Uniques/NPCs Destroyed . | . . . . . . Combat | -11 -10 -10 -10 -9 -8 -------- Run | Yrd Mat Min Exi Min Mat Hostile Shots Fired 309 | . 70 43 . 29 167 Missed 81 | . 18 14 . 7 42 Damage Taken 3438 | . 705 339 . 245 2149 Core 773 | . 106 68 . 45 554 Absorbed by Shields . | . . . . . . Regen/Repaired (Parts) 68 | . 10 . . . 58 Core Remaining (%) 56 | 100 . . . 12 . Volleys Fired 185 | . 65 27 . 17 76 Largest 2 | . 2 2 . 2 2 Hottest 160 | . 60 40 . 53 160 Shots Fired 318 | . 129 55 . 20 114 Gun 300 | . 129 55 . 10 106 Cannon . | . . . . . . Launcher 18 | . . . . 10 8 Special . | . . . . . . Kinetic 217 | . 120 55 . 10 32 Thermal 59 | . . . . . 59 Explosive 18 | . . . . 10 8 Electromagnetic 24 | . 9 . . . 15 Robot Hit Streak 13 | . 9 13 . 4 12 Robot Miss Streak 6 | . 6 2 . 1 3 Penetration Max 1 | . . . . . 1 Secondary Targets 5 | . 2 3 . . . Max Gunslinging Chain 1 | . 1 1 . . . Shots Hit Robots 204 | . 54 39 . 12 99 Core Hits 132 | . 34 22 . 15 61 Critical Kills . | . . . . . . Critical Parts Destroyed 1 | . . 1 . . . Critical Strikes 7 | . . 1 . . 6 Burn 2 | . . . . . 2 Destroy 1 | . . 1 . . . Sever 4 | . . . . . 4 Melee Attacks 24 | . . . . 6 18 Impact . | . . . . . . Slashing 24 | . . . . 6 18 Piercing . | . . . . . . Sneak Attacks 3 | . . . . 2 1 Combat Hostiles . | . . . . . . Follow-up Attacks . | . . . . . . Damage Inflicted 5365 | . 1000 493 . 787 3085 Guns 2636 | . 605 493 . 45 1493 Cannons . | . . . . . . Explosions 1600 | . 395 . . 422 783 Melee 1129 | . . . . 320 809 Ramming . | . . . . . . Kinetic 1504 | . 577 493 . 45 389 Thermal 939 | . 26 . . . 913 Explosive 1205 | . . . . 422 783 Electromagnetic 588 | . 397 . . . 191 Impact . | . . . . . . Slashing 1129 | . . . . 320 809 Piercing . | . . . . . . Highest Corruption 5 | . 2 2 2 2 5 Average Corruption 2 | . 1 2 2 2 4 Corruption Purged . | . . . . . . Corruption Blocked . | . . . . . . Effects 92 | . 19 14 15 11 33 Message Errors 21 | . 3 2 5 3 8 Matter Fused 15 | . 3 2 3 . 7 Heat Flow Errors 15 | . 2 3 . 4 6 Energy Discharges 12 | . 2 2 4 1 3 Parts Rejected 1 | . 1 . . . . Parts Fused 2 | . 1 . . . 1 Data Loss (minor) 9 | . 2 2 2 2 1 Data Loss (major) 5 | . 3 . 1 . 1 Misfires 8 | . 1 2 . 1 4 Alerts 2 | . . . . . 2 Weapon Failures 2 | . 1 1 . . . Overload Shots . | . . . . . . Overflow Damage 145 | . . . . 68 77 Projectiles . | . . . . . . Explosions 92 | . . . . 36 56 Melee 53 | . . . . 32 21 Knockbacks . | . . . . . . Impact . | . . . . . . Kinetic . | . . . . . . Secondary . | . . . . . . Self-Inflicted Damage 331 | . 104 . . 48 179 Shots 11 | . 3 . . 2 6 Rammed . | . . . . . . Targets Rammed . | . . . . . . Kicked . | . . . . . . Crushed . | . . . . . . Highest Temperature 437 | . 171 251 . 199 437 Average Temperature 109 | . 37 77 . 77 146 Received Heat Transfer 1374 | . 339 162 . 36 837 Effects 3 | . . . . . 3 Shutdowns 1 | . . . . . 1 Interference 1 | . . . . . 1 Short Circuit 1 | . . . . . 1 Siege Activations . | . . . . . . Robots Corrupted . | . . . . . . Combat Hostiles . | . . . . . . Parts Fried 6 | . 1 . . . 5 Impact Corruptions . | . . . . . . Robots Melted . | . . . . . . Combat Hostiles . | . . . . . . Parts Melted 3 | . . . . . 3 Heat Transferred 2249 | . 50 . . . 2199 Parts Sabotaged . | . . . . . . Parts Stolen . | . . . . . . Parts Stripped . | . . . . . . Power Chain Reactions 4 | . 4 . . . . Alert | -11 -10 -10 -10 -9 -8 ------- Run | Yrd Mat Min Exi Min Mat Peak Influence 416 | . 416 308 . 196 362 Initial 43 | . . 43 . . 19 Average 131 | . 230 149 . 76 98 Maximum Alert Level 2 | . 2 1 . . 1 Low Security (%) 75 | 100 30 73 . 100 87 Level 1 23 | . 62 26 . . 12 Level 2 1 | . 6 . . . . Level 3 . | . . . . . . Level 4 . | . . . . . . Level 5 . | . . . . . . High Security . | . . . . . . Max Security . | . . . . . . Squads Dispatched 11 | . 3 . . . 8 Investigation 3 | . 1 . . . 2 Extermination . | . . . . . . Reinforcement 5 | . 2 . . . 3 Assault . | . . . . . . Garrison 3 | . . . . . 3 Intercept . | . . . . . . Searches Triggered . | . . . . . . Construction Impeded 1 | . . . . . 1 Haulers Reinforced . | . . . . . . Active Scanning Responses . | . . . . . . Cargo Convoy Interrupts . | . . . . . . Stealth | -11 -10 -10 -10 -9 -8 --------- Run | Yrd Mat Min Exi Min Mat Distress Signals 3 | . 1 . . . 2 Communications Jammed . | . . . . . . Distress Signals . | . . . . . . Times Spotted 85 | . 22 14 . 11 38 Peak Tracking Total 6 | . 4 5 . 4 6 Tactical Retreats 6 | . 3 2 . . 1 Traps | -11 -10 -10 -10 -9 -8 ------- Run | Yrd Mat Min Exi Min Mat Traps Triggered 1 | . . . . . 1 Indirectly . | . . . . . . Trap Hack Attempts . | . . . . . . Triggered . | . . . . . . Disarmed . | . . . . . . Reprogrammed . | . . . . . . Reused . | . . . . . . Traps Extracted . | . . . . . . Installed . | . . . . . . Triggered . | . . . . . . Machines | -11 -10 -10 -10 -9 -8 ---------- Run | Yrd Mat Min Exi Min Mat Machines Disabled 15 | . 12 . . 1 2 Max in Single Turn 4 | . 4 . . 1 1 Machines Repaired . | . . . . . . Machines Dismantled . | . . . . . . Machines Sabotaged . | . . . . . . Overloaded Fab Kills . | . . . . . . Hacking | -11 -10 -10 -10 -9 -8 --------- Run | Yrd Mat Min Exi Min Mat Machines Accessed 19 | . 4 1 5 . 9 Terminals 10 | . 3 1 . . 6 Fabricators . | . . . . . . Repair Stations 3 | . 1 . . . 2 Recycling Units . | . . . . . . Scanalyzers 1 | . . . . . 1 Garrison Access . | . . . . . . Total Hacks 88 | . 6 1 50 . 31 Successful 77 | . 4 1 50 . 22 Failed 11 | . 2 . . . 9 Catastrophic 2 | . 1 . . . 1 Database Lockouts . | . . . . . . Manual 1 | . . . 1 . . Terminals 23 | . 4 1 . . 18 Fabricators . | . . . . . . Repair Stations 8 | . 2 . . . 6 Recycling Units . | . . . . . . Scanalyzers 7 | . . . . . 7 Garrison Access . | . . . . . . Terminal Hacks 63 | . 2 1 50 . 10 Record 55 | . . . 49 . 6 Unreport Threat 2 | . 1 . . . 1 Dispatch Records 1 | . . 1 . . . Reinforcement Status 1 | . . . . . 1 Hauler Manifests 2 | . . . . . 2 Registered Prototypes 1 | . 1 . . . . Derelict Proto ID Bank 1 | . . . 1 . . Fabricator Hacks . | . . . . . . Repair Station Hacks 7 | . 2 . . . 5 Scan Component 4 | . 1 . . . 3 Repair 3 | . 1 . . . 2 Recycling Unit Hacks . | . . . . . . Scanalyzer 7 | . . . . . 7 Insert Component 3 | . . . . . 3 Analyze 4 | . . . . . 4 Garrison Access Hacks . | . . . . . . Unauthorized Hacks . | . . . . . . Terminals . | . . . . . . Fabricators . | . . . . . . Repair Stations . | . . . . . . Recycling Units . | . . . . . . Scanalyzers . | . . . . . . Garrison Access . | . . . . . . Data Cores Recovered . | . . . . . . Used . | . . . . . . Hacking Detections 10 | . 2 . . . 8 Full Trace Events 2 | . . . . . 2 Feedback Events 1 | . . . . . 1 Hackware Fried 1 | . . . . . 1 Feedback Blocked . | . . . . . . Robot Schematics Acquired . | . . . . . . Robots Built . | . . . . . . Authchips . | . . . . . . Time . | . . . . . . Total Robot Build Rating . | . . . . . . Part Schematics Acquired 3 | . . . . . 3 Parts Built . | . . . . . . Authchips . | . . . . . . Time . | . . . . . . Total Part Build Rating . | . . . . . . Parts Repaired 3 | . 1 . . . 2 Time 141 | . 38 . . . 103 Parts Recycled . | . . . . . . Recycled Matter . | . . . . . . Retrieved Matter . | . . . . . . Retrieved Components . | . . . . . . Parts Scanalyzed 3 | . . . . . 3 Part Schematics Acquired 3 | . . . . . 3 Parts Damaged . | . . . . . . Bothacking | -11 -10 -10 -10 -9 -8 ------------ Run | Yrd Mat Min Exi Min Mat Used RIF Installer . | . . . . . . Robots Hacked . | . . . . . . Non-combat . | . . . . . . Combat . | . . . . . . Robot Hacks Applied . | . . . . . . Relay Couplers Released . | . . . . . . Fabnet Peak Effective % . | . . . . . . Robots Rewired . | . . . . . . Allies Hacked . | . . . . . . Hacks Repelled . | . . . . . . Allies | -11 -10 -10 -10 -9 -8 -------- Run | Yrd Mat Min Exi Min Mat Total Allies 2 | . . 2 . . . Largest Group 2 | . . 2 1 . . Highest-Rated Group 41 | . . 41 31 . . Highest-Rated Ally 31 | . . 31 31 . . Total Orders . | . . . . . . Ally Attacks . | . . . . . . Total Damage . | . . . . . . Kills . | . . . . . . Allies Corrupted . | . . . . . . Allies Melted . | . . . . . . Intel | -11 -10 -10 -10 -9 -8 ------- Run | Yrd Mat Min Exi Min Mat Robot Analysis Total . | . . . . . . Derelict Logs Recovered 2 | . . 1 . 1 . Drone Launches . | . . . . . . Drone Recoveries . | . . . . . . Exploration | -11 -10 -10 -10 -9 -8 ------------- Run | Yrd Mat Min Exi Min Mat Turns Passed 6058 | 65 1072 1118 1030 1141 1632 Spaces Moved 4085 | 43 709 750 858 826 899 Core 17 | 17 . . . . . Treads . | . . . . . . Legs 4068 | 26 709 750 858 826 899 Wheels . | . . . . . . Hover . | . . . . . . Flight . | . . . . . . Fastest Speed 50 | 50 120 120 120 120 110 Average Speed 122 | 117 120 120 120 120 129 Slowest Speed 260 | 150 190 190 120 120 260 Overloaded Moves . | . . . . . . Propulsion Burnouts . | . . . . . . Robots Hopped . | . . . . . . Cave-ins Triggered . | . . . . . . Exploration Rate (%) 76 | 3 99 99 93 103 59 Regions Visited 5 Branch Regions 3 Pre-discovered Areas 2 | . . . 1 1 . Known Exits Taken . | . . . . . . Unknown Exits Taken 5 | 1 1 1 1 1 . Scrap Searched 4 | . . 2 . 2 . Spaces Dug 32 | . . . . 32 . Terrain Destroyed 173 | . 4 . . 108 61 Melee . | . . . . . . Projectile 1 | . . . . . 1 AOE 172 | . 4 . . 108 60 Terrain Rammed . | . . . . . . Walls Destroyed . | . . . . . . Machines Disabled . | . . . . . . Actions | -11 -10 -10 -10 -9 -8 --------- Run | Yrd Mat Min Exi Min Mat Total 4825 | 57 811 912 859 951 1235 Wait 352 | . 13 107 . 98 134 Move 4080 | 42 708 749 857 825 899 Hop . | . . . . . . Pick Up 78 | 8 13 13 1 1 42 Fast Attach . | . . . . . . Attach 38 | 6 3 4 . 1 24 Detach 2 | . . . . . 2 Swap 38 | 1 7 3 . 2 25 Drop 28 | . 2 9 1 1 15 Fire 185 | . 65 27 . 17 76 Melee 24 | . . . . 6 18 Ram . | . . . . . . Kick . | . . . . . . Crush . | . . . . . . Escape Stasis . | . . . . . . Rewire . | . . . . . . Trap . | . . . . . . Miscellaneous . | . . . . . . Route ------- -11/Scrapyard -10/Materials (discovered 6 exits: [*Mat x3] / *Min x2 / [*Sub]) -10/Mines (discovered 3 exits: [*Mat x2] / *Exi) -10/Exiles (discovered 2 exits: [*Min x2]) -9/Mines (discovered 2 exits: *Mat x2) -8/Materials (discovered 2 exits: *Fac x2) History --------- Turn | Location | Event 22 | -11/Scrapyard | Discovered new exit (range 15) 66 | -11/Scrapyard | Entered Materials 71 | -10/Materials | Discovered new exit (range 16) 170 | -10/Materials | Discovered new exit (range 16) 272 | -10/Materials | Discovered new exit (range 16) 310 | -10/Materials | Build established: Mutant 584 | -10/Materials | Discovered new exit (range 16) 650 | -10/Materials | Discovered new exit (range 5) 749 | -10/Materials | Repaired Lgt. Nuclear Core 996 | -10/Materials | Discovered new exit (range 7) 1138 | -10/Materials | Entered Mines 1141 | -10/Mines | Core integrity fell below 50% 1316 | -10/Mines | Discovered new exit (range 8) 1380 | -10/Mines | Deemed a non-threat by the Exiles lab entrance 1380 | -10/Mines | Discovered new exit (range 5) 1542 | -10/Mines | Learned Materials emergency access door positions 1567 | -10/Mines | Joined a pair of Derelicts in attacking an 0b10 outpost 1764 | -10/Mines | Discovered new exit (range 6) 1816 | -10/Mines | Found a damaged Exp. Sensor Array with a note attached 1821 | -10/Mines | Found Prototype Device 2126 | -10/Mines | Build established: Scavenger-Mutant 2256 | -10/Mines | Entered Exiles 2256 | -10/Exiles | Accompanied by 1 ally 2286 | -10/Exiles | Led the pair of lost Derelicts to a safe place 2286 | -10/Exiles | Met 8R-AWN 2308 | -10/Exiles | Met EX-HEX 2352 | -10/Exiles | Met EX-DEC 2376 | -10/Exiles | Learned location of Zion (-7) 2436 | -10/Exiles | Discovered new exit (range 12) 2579 | -10/Exiles | Visited The Gauntlet 2805 | -10/Exiles | Discovered new exit (range 14) 2896 | -10/Exiles | Met EX-BIN 2967 | -10/Exiles | Aligned with FarCom system 2968 | -10/Exiles | Given EX-Vault access code 3017 | -10/Exiles | Opened EX-Vault 3032 | -10/Exiles | Found Longsword +1 3057 | -10/Exiles | Warned to stay clear of 0b10 Research branches 3286 | -10/Exiles | Left Exiles lab with Longsword +1 3286 | -10/Exiles | Entered Mines 3293 | -9/Mines | Received a Rocket Launcher from a helpful Derelict 3558 | -9/Mines | Learned location of Storage (-9) 3621 | -9/Mines | Discovered new exit (range 13) 3759 | -9/Mines | Discovered new exit (range 5) 3899 | -9/Mines | Core integrity fell below 20% 4427 | -9/Mines | Entered Materials 4427 | -8/Materials | Evolved 4 slots: Propulsion x2, Utility x2 4701 | -8/Materials | Garrison activated, responded to threat 4841 | -8/Materials | Core integrity fell below 50% 4867 | -8/Materials | Destroyed 7 combat bots 4874 | -8/Materials | Core integrity fell below 20% 4898 | -8/Materials | Lost 13 parts (1p4n3u5w) 5288 | -8/Materials | Discovered new exit (range 10) 5645 | -8/Materials | Build established: Mutant 5752 | -8/Materials | Repaired Corrupted Imp. Signal Interpreter 5874 | -8/Materials | Hacking Suite fried by hacking feedback 5924 | -8/Materials | Repaired Lgt. Angular Momentum Engine 5957 | -8/Materials | Discovered new exit (range 16) 6024 | -8/Materials | Identified exit to Factory 6059 | -8/Materials | Destroyed by H-55 Commando with Gauss Rifle Last Messages --------------- >>Manifests Retrieving manifest data... Found 3 haulers: A-02 Transporter 2x Sml. Laser 4x Cooling System A-02 Transporter 1x Assault Cannon 1x Minigun 2x Scythe A-02 Transporter 1x Aerolev Unit 2x Adv. Beam Rifle 3x Hvy. Ion Engine >>Enumerate(Reinforcements) Retrieving latest reported positions... Found 2 active reinforcement squads. Downloaded coordinate data. 06044_ System corrupted: Heat flow error (+212). 06056_ Terminal disabled. Map ----- +----------------------------------------------------+ | | | | | | | | | | | | | | | | | | | | | | | | | | | | | | | | | | | ??????????????###########???????????? | | #######???????# """T""" #???????????? | | # = #??????# #???????????? | | # #??###?# #???????????? | | # """ #??# ## #######?????# | | # """ #### #####/### ####### | | # """ + h | | # # " ## < =% | | ?####### @ ## * | | ???????# ######### ####### | | ???????# ##?##??#####/#####???# | | ???????# "#?????# """ """ #???? | | ???????# ! T#?????# """ """ #???? | | ???????# "#?????# """ """ #???? | | ???????# """ ##?????# ##### | | ???????# """ #??????# = + | | ???????#[ """ #??????# ##### | | ???????# #??????# #???? | | ??????? +??????# #???? | | ??????#####+##+#??????###########???? | | ???????????????????????############## | | ???????????????????????# | | ???????????????????????# | | ???????????????????????# | | ???????????????????????# ########## | | ????????????????????????????????# !% | | ????????????????????????????????# "" | | ????????????????????????????????# """ | | ????????????????????????????????# | | ????????????????????????????????# | | ????????????????????????????????# | | ????????????????????????????????##+## | | ?????????????????????????????????#??? | +----------------------------------------------------+ Best States ------------- Heat Dissipation 45 Energy Generation 18 Energy Capacity 250 Matter Stores 300 Matter Capacity 300 Sight Range 16 Terrain Scan Density 10 Evasion (%) 55 Targeting Accuracy 10 Melee Accuracy 5 Offensive Hacking 10 Item Schematics ----------------- Imp. Signal Interpreter | -8/Materials | Scanalyzed Rocket Launcher | -8/Materials | Scanalyzed Imp. Titanium Leg | -8/Materials | Scanalyzed Robot Schematics ------------------ None Fabricated ------------ Nothing Alien Tech Used ----------------- None Achievements -------------- Please Form A Line Tourist Troublemaker Challenges ------------ None Game ------ Seed CoolingVisualRedirector Manual? 0 Play Time 01:15:54 Cumulative 7.0 hours Start 2024.04.08 @ 02:14:26 End 2024.04.08 @ 03:34:45 Sessions 1 Manual Loads 0 Difficulty Rogue Special Mode None Game No. 5 Rogue 5 Adventurer 0 Explorer 0 Win Type - Total 0 Types 0/0/0/0/0/0/0/0/0 Lore% 12 Gallery% 9 Achievement% 7 Wizard Run 0 Options --------- Layout 2 ASCII 0 Keyboard 0 Movement Mouse Keybinds 0 Fullscreen 2 Font 48/Terminus Map View 50x44 Zoom Use 0% Tactical HUD 1 Map Filters NONE Filters NONE Steam 1 RUN: 08c44799-315d-47e5-8e0f-17f2bb255d99